[Event "Turkish Cup 2024"]
[Site "Denizli"]
[Date "2024.07.31"]
[Round "2"]
[White "Aytekin, Mustafa Tugrul"]
[Black "Topal, Hasan Gokmen"]
[Result "0-1"]
[ECO "B24"]
[WhiteElo "1772"]
[BlackElo "1905"]
[Annotator "ChessBase"]
[PlyCount "166"]
[EventDate "2024.08.01"]
[EventType "swiss"]
[EventCountry "TUR"]
[SourceTitle "playchess.com"]
[Source "ChessBase"]
[SourceQuality "1"]
[TimeControl "5400+30"]

1. e4 {[%emt 0:01:00]} c5 {[%emt 0:01:00]} 2. Nc3 {[%emt 0:00:00]} e6 {[%emt 0:00:30]} 3. g3 {[%emt 0:03:00]} Nc6 {[%emt 0:00:30]} 4. Bg2 {[%emt 0:00:30]} g6 {[%emt 0:00:30]} 5. d3 {[%emt 0:00:30]} Bg7 {[%emt 0:00:00]} 6. f4 {[%emt 0:02:30]} Nge7 {[%emt 0:03:00]} 7. Nf3 {[%emt 0:00:30]} Nd4 {[%emt 0:00:00]} 8. O-O {[%emt 0:02:30]} O-O {[%emt 0:01:00]} 9. Be3 {[%emt 0:04:30]} Nec6 {[%emt 0:01:30]} 10. e5 {[%emt 0:02:30]} f6 {[%emt 0:22:30]} 11. Bxd4 {[%emt 0:31:30]} cxd4 {[%emt 0:00:30]} 12. exf6 {[%emt 0:01:30]} Qxf6 {[%emt 0:00:30]} 13. Ne4 {[%emt 0:01:30]} Qe7 {[%emt 0:00:00]} 14. Qd2 {[%emt 0:01:30]} b6 {[%emt 0:07:00]} 15. Rae1 {[%emt 0:02:30]} Bb7 {[%emt 0:03:30]} 16. a3 {[%emt 0:03:30]} Rac8 {[%emt 0:01:30]} 17. g4 {[%emt 0:07:30]} Nd8 {[%emt 0:06:30]} 18. Ng3 {[%emt 0:14:32]} Qc5 {[%emt 0:01:30]} 19. Re2 {[%emt 0:03:14]} Nf7 {[%emt 0:05:30]} 20. Nh4 {[%emt 0:08:10]} Bxg2 {[%emt 0:01:30]} 21. Nxg2 {[%emt 0:00:43]} Nd6 {[%emt 0:01:30]} 22. Ref2 {[%emt 0:00:58]} Bh6 {[%emt 0:03:30]} 23. Qe2 {[%emt 0:00:26]} Rce8 {[%emt 0:01:30]} 24. h4 {[%emt 0:02:21]} Qd5 {[%emt 0:02:30]} 25. Ne4 {[%emt 0:02:01]} Nxe4 {[%emt 0:01:30]} 26. dxe4 {[%emt 0:00:49]} Qc5 {[%emt 0:00:30]} 27. Qd3 {[%emt 0:01:17]} b5 {[%emt 0:02:30]} 28. Rd1 {[%emt 0:01:36]} Bg7 {[%emt 0:01:30]} 29. Rdf1 {[%emt 0:00:13]} Qc4 {[%emt 0:10:30]} 30. Qg3 {[%emt 0:01:00]} Qc6 {[%emt 0:01:30]} 31. f5 {[%emt 0:00:39]} exf5 {[%emt 0:01:29]} 32. exf5 {[%emt 0:00:45]} Be5 {[%emt 0:00:48]} 33. Qb3+ {[%emt 0:01:07]} Qc4 {[%emt 0:00:07]} 34. fxg6 {[%emt 0:00:00]} hxg6 {[%emt 0:01:31]} 35. Rxf8+ {[%emt 0:00:38]} Rxf8 {[%emt 0:00:04]} 36. Rxf8+ {[%emt 0:00:18]} Kxf8 {[%emt 0:00:03]} 37. Qf3+ {[%emt 0:00:00]} Kg7 {[%emt 0:00:25]} 38. Qb7 {[%emt 0:00:40]} Qe6 {[%emt 0:02:37]} 39. Qxb5 {[%emt 0:00:53]} Bg3 {[%emt 0:00:08]} 40. Qd3 {[%emt 0:00:38]} Qxg4 {[%emt 0:00:13]} 41. Kf1 {[%emt 0:00:30]} Be5 {[%emt 0:07:08]} 42. Qe2 {[%emt 0:00:26]} Qf5+ {[%emt 0:00:12]} 43. Ke1 {[%emt 0:00:27]} d6 {[%emt 0:01:39]} 44. Kd1 {[%emt 0:00:31]} Qh3 {[%emt 0:00:25]} 45. Qe4 {[%emt 0:00:31]} Qh1+ {[%emt 0:00:40]} 46. Kd2 {[%emt 0:00:36]} Qf1 {[%emt 0:00:15]} 47. Ne1 {[%emt 0:00:30]} Bf4+ {[%emt 0:04:22]} 48. Kd1 {[%emt 0:00:00]} Qf2 {[%emt 0:00:24]} 49. Nf3 {[%emt 0:00:37]} Qf1+ {[%emt 0:00:52]} 50. Ne1 {[%emt 0:00:01]} Be5 {[%emt 0:03:39]} 51. Kd2 {[%emt 0:01:14]} Qf2+ {[%emt 0:01:43]} 52. Kd1 {[%emt 0:00:04]} Bf6 {[%emt 0:00:51]} 53. Nf3 {[%emt 0:00:33]} d3 {[%emt 0:00:34]} 54. Qxd3 {[%emt 0:00:40]} Bxb2 {[%emt 0:00:26]} 55. a4 {[%emt 0:00:29]} Bf6 {[%emt 0:00:31]} 56. Qe4 {[%emt 0:00:45]} Qf1+ {[%emt 0:00:23]} 57. Kd2 {[%emt 0:00:29]} Qg2+ {[%emt 0:00:37]} 58. Kd3 {[%emt 0:00:26]} Qf1+ {[%emt 0:00:21]} 59. Kd2 {[%emt 0:00:11]} Qf2+ {[%emt 0:01:18]} 60. Kd3 {[%emt 0:00:41]} Qc5 {[%emt 0:00:12]} 61. Kd2 {[%emt 0:00:48]} Qc3+ {[%emt 0:00:25]} 62. Ke2 {[%emt 0:00:40]} d5 {[%emt 0:00:08]} 63. Qxd5 {[%emt 0:00:38]} Qxc2+ {[%emt 0:00:04]} 64. Kf1 {[%emt 0:00:09]} Qxa4 {[%emt 0:00:13]} 65. Qb7+ {[%emt 0:00:31]} Kh6 {[%emt 0:00:05]} 66. Qc8 {[%emt 0:00:32]} Qb5+ {[%emt 0:01:29]} 67. Kf2 {[%emt 0:00:32]} Qf5 {[%emt 0:01:13]} 68. Qc1+ {[%emt 0:00:50]} Kh5 {[%emt 0:00:07]} 69. Qc4 {[%emt 0:00:00]} a5 {[%emt 0:00:46]} 70. Qa4 {[%emt 0:00:34]} Kh6 {[%emt 0:00:29]} 71. Qc4 {[%emt 0:00:32]} Be7 {[%emt 0:00:19]} 72. Qc1+ {[%emt 0:00:58]} Kh5 {[%emt 0:00:19]} 73. Qc4 {[%emt 0:00:00]} Qc5+ {[%emt 0:00:32]} 74. Qxc5+ {[%emt 0:00:24]} Bxc5+ {[%emt 0:00:00]} 75. Ke2 {[%emt 0:00:09]} Be7 {[%emt 0:00:00]} 76. Kd3 {[%emt 0:00:41]} Bxh4 {[%emt 0:00:02]} 77. Kc4 {[%emt 0:00:06]} Bd8 {[%emt 0:01:11]} 78. Kb5 {[%emt 0:00:10]} g5 {[%emt 0:00:00]} 79. Nd4 {[%emt 0:00:41]} g4 {[%emt 0:00:09]} 80. Nf5 {[%emt 0:00:55]} Kg5 {[%emt 0:00:26]} 81. Ng3 {[%emt 0:01:01]} Kf4 {[%emt 0:00:08]} 82. Ne2+ {[%emt 0:00:00]} Kf3 {[%emt 0:00:31]} 83. Nd4+ {[%emt 0:00:00]} Kf2 {[%emt 0:00:37]} 0-1

[Event "Turkish Cup 2024"]
[Site "Denizli"]
[Date "2024.07.31"]
[Round "2"]
[White "Kececi, Kaan"]
[Black "Cevizci, Yusuf Baran"]
[Result "0-1"]
[ECO "C11"]
[WhiteElo "1765"]
[BlackElo "2102"]
[Annotator "ChessBase"]
[PlyCount "118"]
[EventDate "2024.08.01"]
[EventType "swiss"]
[EventCountry "TUR"]
[SourceTitle "playchess.com"]
[Source "ChessBase"]
[SourceQuality "1"]
[TimeControl "5400+30"]

1. e4 {[%emt 0:01:00]} e6 {[%emt 0:01:00]} 2. d4 {[%emt 0:00:30]} d5 {[%emt 0:00:30]} 3. Nc3 {[%emt 0:00:00]} Nf6 {[%emt 0:00:30]} 4. e5 {[%emt 0:00:00]} Nfd7 {[%emt 0:00:30]} 5. f4 {[%emt 0:00:30]} c5 {[%emt 0:00:00]} 6. Nf3 {[%emt 0:00:00]} Nc6 {[%emt 0:00:00]} 7. Be3 {[%emt 0:00:00]} Qb6 {[%emt 0:00:00]} 8. Na4 {[%emt 0:00:00]} Qa5+ {[%emt 0:00:00]} 9. c3 {[%emt 0:00:00]} b6 {[%emt 0:00:00]} 10. b3 {[%emt 0:07:30]} b5 {[%emt 0:19:00]} 11. Nxc5 {[%emt 0:01:30]} Bxc5 {[%emt 0:00:30]} 12. b4 {[%emt 0:01:30]} Nxb4 {[%emt 0:00:30]} 13. dxc5 {[%emt 0:00:30]} Na6 {[%emt 0:01:30]} 14. Qb3 {[%emt 0:05:30]} Naxc5 {[%emt 0:02:30]} 15. Bxc5 {[%emt 0:00:30]} Nxc5 {[%emt 0:00:30]} 16. Qxb5+ {[%emt 0:00:30]} Qxb5 {[%emt 0:00:30]} 17. Bxb5+ {[%emt 0:00:30]} Bd7 {[%emt 0:00:00]} 18. Be2 {[%emt 0:02:30]} Ke7 {[%emt 0:02:00]} 19. c4 {[%emt 0:02:30]} dxc4 {[%emt 0:02:30]} 20. Bxc4 {[%emt 0:00:30]} Rhc8 {[%emt 0:02:30]} 21. O-O {[%emt 0:01:30]} a5 {[%emt 0:00:30]} 22. Nd4 {[%emt 0:05:30]} g6 {[%emt 0:06:30]} 23. Bb5 {[%emt 0:03:30]} a4 {[%emt 0:03:30]} 24. Bxd7 {[%emt 0:04:30]} Nxd7 {[%emt 0:00:30]} 25. Rac1 {[%emt 0:00:30]} Nc5 {[%emt 0:03:30]} 26. Nb5 {[%emt 0:05:30]} Nd3 {[%emt 0:01:30]} 27. Rcd1 {[%emt 0:00:30]} Nb4 {[%emt 0:00:30]} 28. a3 {[%emt 0:03:30]} Nd5 {[%emt 0:00:30]} 29. Rd4 {[%emt 0:03:30]} Rcb8 {[%emt 0:26:30]} 30. Nd6 {[%emt 0:03:30]} Rb3 {[%emt 0:01:30]} 31. Rf3 {[%emt 0:00:30]} f6 {[%emt 0:06:57]} 32. Ne4 {[%emt 0:03:30]} f5 {[%emt 0:03:20]} 33. Nc5 {[%emt 0:01:30]} Rb1+ {[%emt 0:00:18]} 34. Kf2 {[%emt 0:00:30]} Rb2+ {[%emt 0:03:28]} 35. Kg3 {[%emt 0:01:30]} Rc8 {[%emt 0:00:10]} 36. Nd3 {[%emt 0:01:30]} Re2 {[%emt 0:07:53]} 37. Rxa4 {[%emt 0:03:30]} Rcc2 {[%emt 0:00:06]} 38. Nf2 {[%emt 0:01:30]} Ne3 {[%emt 0:02:15]} 39. Ra7+ {[%emt 0:00:00]} Kf8 {[%emt 0:00:31]} 40. Rxh7 {[%emt 0:01:00]} g5 {[%emt 0:03:37]} 41. fxg5 {[%emt 0:02:30]} Nf1+ {[%emt 0:00:05]} 42. Kh4 {[%emt 0:00:00]} Rxf2 {[%emt 0:00:07]} 43. Rb3 {[%emt 0:00:00]} Rb2 {[%emt 0:00:21]} 44. Rxb2 {[%emt 0:12:30]} Rxb2 {[%emt 0:00:30]} 45. Kh5 {[%emt 0:00:00]} Nxh2 {[%emt 0:01:49]} 46. Kg6 {[%emt 0:01:00]} Ng4 {[%emt 0:00:07]} 47. Rh8+ {[%emt 0:01:30]} Ke7 {[%emt 0:00:30]} 48. Rh7+ {[%emt 0:00:00]} Ke8 {[%emt 0:00:00]} 49. Rh8+ {[%emt 0:00:00]} Kd7 {[%emt 0:00:27]} 50. Rh7+ {[%emt 0:00:30]} Kc6 {[%emt 0:00:29]} 51. Kf7 {[%emt 0:02:30]} Kd5 {[%emt 0:01:02]} 52. g6 {[%emt 0:00:30]} Nxe5+ {[%emt 0:00:35]} 53. Kf6 {[%emt 0:00:00]} Nxg6 {[%emt 0:00:11]} 54. Kxg6 {[%emt 0:00:00]} Rxg2+ {[%emt 0:00:30]} 55. Kf6 {[%emt 0:00:30]} Ra2 {[%emt 0:00:30]} 56. Rd7+ {[%emt 0:00:30]} Ke4 {[%emt 0:00:30]} 57. Rb7 {[%emt 0:00:30]} f4 {[%emt 0:00:30]} 58. Rb4+ {[%emt 0:00:30]} Ke3 {[%emt 0:00:30]} 59. Kxe6 {[%emt 0:00:30]} f3 {[%emt 0:00:00]} 0-1

[Event "Turkish Cup 2024"]
[Site "Denizli"]
[Date "2024.07.31"]
[Round "2"]
[White "Asici, Poyraz Efe"]
[Black "Atis, Hasan"]
[Result "1/2-1/2"]
[ECO "D46"]
[WhiteElo "1747"]
[BlackElo "2080"]
[Annotator "ChessBase"]
[PlyCount "117"]
[EventDate "2024.08.01"]
[EventType "swiss"]
[EventCountry "TUR"]
[SourceTitle "playchess.com"]
[Source "ChessBase"]
[SourceQuality "1"]
[TimeControl "5400+30"]

1. d4 {[%emt 0:01:00]} d5 {[%emt 0:02:00]} 2. c4 {[%emt 0:00:30]} e6 {[%emt 0:00:30]} 3. Nf3 {[%emt 0:00:30]} Nf6 {[%emt 0:00:00]} 4. Nc3 {[%emt 0:00:00]} c6 {[%emt 0:00:00]} 5. e3 {[%emt 0:00:00]} Nbd7 {[%emt 0:00:00]} 6. Bd3 {[%emt 0:00:00]} dxc4 {[%emt 0:00:00]} 7. Bxc4 {[%emt 0:00:00]} b5 {[%emt 0:00:00]} 8. Bd3 {[%emt 0:00:30]} Bd6 {[%emt 0:00:00]} 9. O-O {[%emt 0:00:00]} O-O {[%emt 0:00:30]} 10. e4 {[%emt 0:00:00]} e5 {[%emt 0:00:00]} 11. Bg5 {[%emt 0:00:30]} h6 {[%emt 0:04:00]} 12. Bh4 {[%emt 0:00:00]} exd4 {[%emt 0:10:30]} 13. Nxd4 {[%emt 0:02:00]} Ne5 {[%emt 0:00:30]} 14. Be2 {[%emt 0:09:30]} a6 {[%emt 0:49:30]} 15. Bg3 {[%emt 0:18:30]} c5 {[%emt 0:02:30]} 16. Nc6 {[%emt 0:01:30]} Qc7 {[%emt 0:05:30]} 17. Nxe5 {[%emt 0:28:30]} Bxe5 {[%emt 0:00:30]} 18. a4 {[%emt 0:16:39]} Bxg3 {[%emt 0:05:37]} 19. hxg3 {[%emt 0:00:21]} Rd8 {[%emt 0:00:40]} 20. Nd5 {[%emt 0:03:07]} Nxd5 {[%emt 0:00:30]} 21. exd5 {[%emt 0:00:00]} Rb8 {[%emt 0:00:13]} 22. axb5 {[%emt 0:04:38]} axb5 {[%emt 0:00:36]} 23. Bf3 {[%emt 0:00:36]} Bf5 {[%emt 0:08:45]} 24. g4 {[%emt 0:02:00]} Bg6 {[%emt 0:00:37]} 25. Qd2 {[%emt 0:00:25]} c4 {[%emt 0:01:16]} 26. Rac1 {[%emt 0:02:14]} Qb6 {[%emt 0:01:42]} 27. Qe3 {[%emt 0:02:23]} Qxe3 {[%emt 0:05:23]} 28. fxe3 {[%emt 0:00:30]} Bd3 {[%emt 0:00:30]} 29. Rfe1 {[%emt 0:00:30]} Re8 {[%emt 0:00:09]} 30. Kf2 {[%emt 0:01:41]} f6 {[%emt 0:01:30]} 31. e4 {[%emt 0:01:57]} Ra8 {[%emt 0:00:25]} 32. Ra1 {[%emt 0:01:51]} Rxa1 {[%emt 0:02:27]} 33. Rxa1 {[%emt 0:00:30]} Bxe4 {[%emt 0:00:30]} 34. Re1 {[%emt 0:00:00]} Bg6 {[%emt 0:00:00]} 35. Rxe8+ {[%emt 0:00:07]} Bxe8 {[%emt 0:00:00]} 36. Ke3 {[%emt 0:00:00]} Kf7 {[%emt 0:01:01]} 37. Kd4 {[%emt 0:00:00]} Ke7 {[%emt 0:00:17]} 38. Kc5 {[%emt 0:00:00]} Bd7 {[%emt 0:00:37]} 39. g3 {[%emt 0:01:07]} Kd8 {[%emt 0:00:42]} 40. Be2 {[%emt 0:01:09]} Kc7 {[%emt 0:00:45]} 41. Bf3 {[%emt 0:00:22]} Kd8 {[%emt 0:00:12]} 42. Be2 {[%emt 0:00:31]} Be8 {[%emt 0:00:08]} 43. Bf3 {[%emt 0:00:13]} Kc7 {[%emt 0:00:42]} 44. Be2 {[%emt 0:00:17]} g6 {[%emt 0:01:08]} 45. Bf3 {[%emt 0:00:19]} Bd7 {[%emt 0:00:01]} 46. Bd1 {[%emt 0:01:23]} Be8 {[%emt 0:00:55]} 47. Bf3 {[%emt 0:00:06]} Kd8 {[%emt 0:00:06]} 48. Be2 {[%emt 0:01:33]} Ke7 {[%emt 0:00:13]} 49. Bf3 {[%emt 0:00:22]} f5 {[%emt 0:01:03]} 50. gxf5 {[%emt 0:00:30]} gxf5 {[%emt 0:00:00]} 51. Bd1 {[%emt 0:00:22]} Bd7 {[%emt 0:00:00]} 52. Be2 {[%emt 0:00:39]} Be8 {[%emt 0:00:00]} 53. Bf3 {[%emt 0:02:37]} Kf6 {[%emt 0:00:01]} 54. d6 {[%emt 0:01:14]} Bd7 {[%emt 0:02:09]} 55. Bc6 {[%emt 0:00:56]} Ke6 {[%emt 0:00:36]} 56. Bd5+ {[%emt 0:01:05]} Kf6 {[%emt 0:00:30]} 57. Bc6 {[%emt 0:00:30]} Ke6 {[%emt 0:00:00]} 58. Bd5+ {[%emt 0:00:00]} Kf6 {[%emt 0:01:24]} 59. Bc6 {[%emt 0:00:00]} 1/2-1/2

[Event "Turkish Cup 2024"]
[Site "Denizli"]
[Date "2024.07.31"]
[Round "2"]
[White "Aydogdu, Aril"]
[Black "Cakir, Ege"]
[Result "0-1"]
[ECO "B45"]
[WhiteElo "1733"]
[BlackElo "1889"]
[Annotator "NA"]
[PlyCount "58"]
[EventDate "2024.08.01"]
[EventType "swiss"]
[EventCountry "TUR"]
[SourceTitle "playchess.com"]
[Source "ChessBase"]
[SourceQuality "1"]
[TimeControl "5400+30"]

1. e4 {[%emt 0:01:00]} c5 {[%emt 0:01:00]} 2. Nf3 {[%emt 0:00:30]} e6 {[%emt 0:00:00]} 3. d4 {[%emt 0:00:00]} cxd4 {[%emt 0:00:00]} 4. Nxd4 {[%emt 0:00:00]} Nf6 {[%emt 0:00:30]} 5. Nc3 {[%emt 0:00:00]} Nc6 {[%emt 0:00:00]} 6. Nxc6 {[%emt 0:00:00]} bxc6 {[%emt 0:00:00]} 7. e5 {[%emt 0:00:00]} Nd5 {[%emt 0:00:00]} 8. Ne4 {[%emt 0:00:00]} Qc7 {[%emt 0:01:00]} 9. f4 {[%emt 0:00:00]} Rb8 {[%emt 0:00:30]} 10. c4 {[%emt 0:15:00]} Bb4+ {[%emt 0:00:30]} 11. Ke2 {[%emt 0:00:30]} O-O {[%emt 0:00:30]} 12. a3 {[%emt 0:37:30]} Be7 {[%emt 0:01:30]} 13. cxd5 {[%emt 0:03:30]} cxd5 {[%emt 0:00:00]} 14. Nd2 {[%emt 0:16:30]} f6 {[%emt 0:02:00]} 15. Nf3 {[%emt 0:00:30]} fxe5 {[%emt 0:03:30]} 16. fxe5 {[%emt 0:00:30]} d6 {[%emt 0:09:30]} 17. exd6 {[%emt 0:00:30]} Bxd6 {[%emt 0:00:30]} 18. Ke1 {[%emt 0:02:30]} Kh8 {[%emt 0:12:30]} 19. b4 {[%emt 0:09:09]} e5 {[%emt 0:12:30]} 20. Bb2 {[%emt 0:02:47]} e4 {[%emt 0:01:30]} 21. Nd4 {[%emt 0:02:07]} Rxb4 {[%emt 0:02:30]} 22. axb4 {[%emt 0:02:00]} Bxb4+ {[%emt 0:00:30]} 23. Qd2 {[%emt 0:00:00]} Bxd2+ {[%emt 0:01:30]} 24. Kxd2 {[%emt 0:00:00]} Bg4 {[%emt 0:02:30]} 25. Ne2 {[%emt 0:07:11]} Qc4 {[%emt 0:04:30]} 26. Rxa7 {[%emt 0:00:49]} Qd3+ {[%emt 0:00:30]} 27. Ke1 {[%emt 0:00:41]} Rxf1+ {[%emt 0:00:00]} 28. Kxf1 {[%emt 0:01:02]} Qxe2+ {[%emt 0:00:00]} 29. Kg1 {[%emt 0:00:15]} Qe1# {[%emt 0:00:30]} 0-1

[Event "Turkish Cup 2024"]
[Site "Denizli"]
[Date "2024.07.31"]
[Round "2"]
[White "Isik, Tuna"]
[Black "Turgut, Hakan"]
[Result "1-0"]
[ECO "D73"]
[WhiteElo "1711"]
[BlackElo "2052"]
[Annotator "RC"]
[PlyCount "187"]
[EventDate "2024.08.01"]
[EventType "swiss"]
[EventCountry "TUR"]
[SourceTitle "playchess.com"]
[Source "ChessBase"]
[SourceQuality "1"]
[TimeControl "5400+30"]

1. d4 {[%emt 0:01:00]} Nf6 {[%emt 0:03:00]} 2. Nf3 {[%emt 0:00:00]} g6 {[%emt 0:01:30]} 3. g3 {[%emt 0:00:00]} Bg7 {[%emt 0:00:00]} 4. Bg2 {[%emt 0:00:00]} c5 {[%emt 0:01:00]} 5. O-O {[%emt 0:00:00]} cxd4 {[%emt 0:02:30]} 6. Nxd4 {[%emt 0:00:30]} d5 {[%emt 0:01:30]} 7. c4 {[%emt 0:03:30]} O-O {[%emt 0:05:30]} 8. Nc3 {[%emt 0:06:30]} e5 {[%emt 0:03:30]} 9. Nb3 {[%emt 0:01:30]} dxc4 {[%emt 0:07:30]} 10. Qxd8 {[%emt 0:00:30]} Rxd8 {[%emt 0:00:00]} 11. Na5 {[%emt 0:00:30]} Nc6 {[%emt 0:00:00]} 12. Nxc6 {[%emt 0:03:30]} bxc6 {[%emt 0:00:30]} 13. Bxc6 {[%emt 0:00:30]} Rb8 {[%emt 0:00:00]} 14. Be3 {[%emt 0:04:30]} a6 {[%emt 0:12:00]} 15. Rfd1 {[%emt 0:01:30]} Be6 {[%emt 0:01:30]} 16. Rxd8+ {[%emt 0:13:30]} Rxd8 {[%emt 0:00:30]} 17. Rd1 {[%emt 0:00:30]} Rxd1+ {[%emt 0:01:30]} 18. Nxd1 {[%emt 0:00:30]} Bd5 {[%emt 0:03:30]} 19. Bxd5 {[%emt 0:01:30]} Nxd5 {[%emt 0:00:00]} 20. Bd2 {[%emt 0:00:00]} e4 {[%emt 0:06:00]} 21. Nc3 {[%emt 0:01:00]} e3 {[%emt 0:01:30]} 22. fxe3 {[%emt 0:01:30]} Bxc3 {[%emt 0:00:00]} 23. Bxc3 {[%emt 0:00:30]} f5 {[%emt 0:01:00]} 24. Bd4 {[%emt 0:01:30]} Kf7 {[%emt 0:05:30]} 25. Kf2 {[%emt 0:01:30]} g5 {[%emt 0:00:30]} 26. Kf3 {[%emt 0:02:30]} g4+ {[%emt 0:00:30]} 27. Kf2 {[%emt 0:00:30]} Nb4 {[%emt 0:09:30]} 28. a3 {[%emt 0:04:30]} Nc2 {[%emt 0:00:30]} 29. Bc3 {[%emt 0:01:30]} Ke6 {[%emt 0:00:00]} 30. Bd2 {[%emt 0:02:30]} Kd5 {[%emt 0:00:00]} 31. Kg2 {[%emt 0:02:30]} Ke4 {[%emt 0:02:30]} 32. Kf2 {[%emt 0:00:00]} Ke5 {[%emt 0:07:30]} 33. Be1 {[%emt 0:05:00]} Kd5 {[%emt 0:00:00]} 34. Bc3 {[%emt 0:00:00]} Kc5 {[%emt 0:02:00]} 35. a4 {[%emt 0:04:00]} Kd5 {[%emt 0:00:30]} 36. Bg7 {[%emt 0:00:30]} Ke4 {[%emt 0:03:30]} 37. Bh6 {[%emt 0:00:30]} c3 {[%emt 0:03:00]} 38. bxc3 {[%emt 0:05:30]} Kd5 {[%emt 0:00:08]} 39. Bf4 {[%emt 0:00:30]} Na3 {[%emt 0:04:51]} 40. Bg5 {[%emt 0:02:30]} Nb1 {[%emt 0:00:52]} 41. Bf6 {[%emt 0:00:00]} Nd2 {[%emt 0:01:14]} 42. Bd4 {[%emt 0:02:00]} Ne4+ {[%emt 0:00:38]} 43. Ke1 {[%emt 0:00:30]} Kc4 {[%emt 0:00:05]} 44. a5 {[%emt 0:00:30]} Kb5 {[%emt 0:02:33]} 45. Bb6 {[%emt 0:01:30]} Nxc3 {[%emt 0:00:50]} 46. Kd2 {[%emt 0:00:30]} Nd5 {[%emt 0:02:23]} 47. Bd8 {[%emt 0:00:30]} Kc4 {[%emt 0:01:38]} 48. Bb6 {[%emt 0:00:30]} Nf6 {[%emt 0:01:26]} 49. Kd1 {[%emt 0:01:30]} Ne4 {[%emt 0:01:00]} 50. Kc2 {[%emt 0:00:30]} Nd6 {[%emt 0:01:55]} 51. Bc7 {[%emt 0:00:30]} Nb7 {[%emt 0:00:13]} 52. Kd2 {[%emt 0:00:30]} Nc5 {[%emt 0:00:30]} 53. Kc2 {[%emt 0:00:30]} Kb5 {[%emt 0:01:47]} 54. Kc3 {[%emt 0:00:30]} Kc6 {[%emt 0:00:47]} 55. Be5 {[%emt 0:01:30]} Ne6 {[%emt 0:01:40]} 56. Kc4 {[%emt 0:00:30]} Nc5 {[%emt 0:01:21]} 57. Bd4 {[%emt 0:01:30]} Nd7 {[%emt 0:01:07]} 58. Bg7 {[%emt 0:00:30]} Kd6 {[%emt 0:00:10]} 59. Kd4 {[%emt 0:00:00]} Kc6 {[%emt 0:00:30]} 60. Kc4 {[%emt 0:00:00]} Kd6 {[%emt 0:00:12]} 61. Kd4 {[%emt 0:00:00]} Kc6 {[%emt 0:00:53]} 62. e4 {[%emt 0:01:00]} fxe4 {[%emt 0:01:12]} 63. Kxe4 {[%emt 0:00:30]} Kb5 {[%emt 0:00:00]} 64. Bc3 {[%emt 0:00:00]} Kc4 {[%emt 0:00:45]} 65. Bd2 {[%emt 0:01:00]} Nc5+ {[%emt 0:01:05]} 66. Kf4 {[%emt 0:00:00]} h5 {[%emt 0:00:27]} 67. Be3 {[%emt 0:01:00]} Nb3 {[%emt 0:01:15]} 68. Bb6 {[%emt 0:00:30]} Kd5 {[%emt 0:00:00]} 69. Kg5 {[%emt 0:00:00]} Ke4 {[%emt 0:00:11]} 70. Kxh5 {[%emt 0:00:00]} Kf5 {[%emt 0:00:30]} 71. e4+ {[%emt 0:00:30]} Kxe4 {[%emt 0:00:00]} 72. Kxg4 {[%emt 0:00:30]} Ke5 {[%emt 0:00:13]} 73. Kg5 {[%emt 0:00:00]} Nd2 {[%emt 0:00:00]} 74. h4 {[%emt 0:00:00]} Ne4+ {[%emt 0:00:00]} 75. Kg4 {[%emt 0:00:30]} Nf6+ {[%emt 0:00:04]} 76. Kf3 {[%emt 0:00:00]} Kf5 {[%emt 0:00:30]} 77. Bd8 {[%emt 0:00:00]} Ng4 {[%emt 0:00:00]} 78. h5 {[%emt 0:00:00]} Ne5+ {[%emt 0:00:16]} 79. Ke3 {[%emt 0:00:00]} Nf7 {[%emt 0:00:00]} 80. Bc7 {[%emt 0:00:30]} Ng5 {[%emt 0:01:04]} 81. Bf4 {[%emt 0:00:30]} Ne6 {[%emt 0:00:06]} 82. h6 {[%emt 0:00:30]} Kg6 {[%emt 0:00:05]} 83. Kd3 {[%emt 0:00:30]} Nd8 {[%emt 0:00:24]} 84. Ke4 {[%emt 0:00:30]} Nb7 {[%emt 0:00:34]} 85. Bd2 {[%emt 0:00:30]} Nc5+ {[%emt 0:00:11]} 86. Kd5 {[%emt 0:00:30]} Nb3 {[%emt 0:00:05]} 87. Bb4 {[%emt 0:00:30]} Kxh6 {[%emt 0:00:18]} 88. Kc6 {[%emt 0:00:00]} Kg5 {[%emt 0:01:01]} 89. Kb6 {[%emt 0:00:00]} Kg4 {[%emt 0:00:30]} 90. Bd6 {[%emt 0:00:30]} Nd2 {[%emt 0:00:28]} 91. Kxa6 {[%emt 0:00:30]} Ne4 {[%emt 0:00:30]} 92. Bc7 {[%emt 0:00:00]} Kf5 {[%emt 0:00:31]} 93. Kb6 {[%emt 0:00:00]} Ke6 {[%emt 0:00:00]} 94. a6 {[%emt 0:00:00]} 1-0

[Event "Turkish Cup 2024"]
[Site "Denizli"]
[Date "2024.07.31"]
[Round "2"]
[White "Ergut, Kaan"]
[Black "Kocakaplan, Emre"]
[Result "0-1"]
[ECO "B33"]
[WhiteElo "1710"]
[BlackElo "1926"]
[Annotator "ChessBase"]
[PlyCount "58"]
[EventDate "2024.08.01"]
[EventType "swiss"]
[EventCountry "TUR"]
[SourceTitle "playchess.com"]
[Source "ChessBase"]
[SourceQuality "1"]
[TimeControl "5400+30"]

1. e4 {[%emt 0:01:00]} c5 {[%emt 0:01:00]} 2. Nf3 {[%emt 0:00:30]} Nc6 {[%emt 0:00:00]} 3. d4 {[%emt 0:00:30]} cxd4 {[%emt 0:00:00]} 4. Nxd4 {[%emt 0:00:30]} Nf6 {[%emt 0:00:30]} 5. Nc3 {[%emt 0:00:00]} e5 {[%emt 0:00:00]} 6. Ndb5 {[%emt 0:01:00]} d6 {[%emt 0:00:00]} 7. Nd5 {[%emt 0:00:30]} Nxd5 {[%emt 0:00:30]} 8. exd5 {[%emt 0:00:30]} Ne7 {[%emt 0:00:00]} 9. c4 {[%emt 0:01:30]} Ng6 {[%emt 0:00:00]} 10. g3 {[%emt 0:03:30]} Be7 {[%emt 0:05:30]} 11. h4 {[%emt 0:02:30]} e4 {[%emt 0:10:30]} 12. Qc2 {[%emt 0:16:30]} O-O {[%emt 0:04:30]} 13. Be2 {[%emt 0:02:30]} f5 {[%emt 0:03:30]} 14. Bd2 {[%emt 0:19:30]} a6 {[%emt 0:06:30]} 15. Nd4 {[%emt 0:03:30]} Bf6 {[%emt 0:00:30]} 16. Bc3 {[%emt 0:03:30]} Re8 {[%emt 0:00:30]} 17. O-O-O {[%emt 0:04:30]} Bd7 {[%emt 0:01:30]} 18. Kb1 {[%emt 0:08:30]} Rc8 {[%emt 0:03:30]} 19. Qb3 {[%emt 0:03:30]} b6 {[%emt 0:14:30]} 20. Rhe1 {[%emt 0:04:30]} Ne5 {[%emt 0:02:30]} 21. f4 {[%emt 0:04:39]} exf3 {[%emt 0:05:30]} 22. Nxf3 {[%emt 0:00:46]} Nxf3 {[%emt 0:02:30]} 23. Bxf6 {[%emt 0:01:35]} Qxf6 {[%emt 0:00:30]} 24. Bxf3 {[%emt 0:01:38]} f4 {[%emt 0:01:30]} 25. Be2 {[%emt 0:12:26]} Re3 {[%emt 0:01:30]} 26. Qxb6 {[%emt 0:01:01]} Rce8 {[%emt 0:00:30]} 27. Qxa6 {[%emt 0:01:25]} Rxe2 {[%emt 0:01:30]} 28. Rxe2 {[%emt 0:00:30]} Rxe2 {[%emt 0:00:00]} 29. Qa8+ {[%emt 0:00:21]} Be8 {[%emt 0:00:00]} 0-1